[Event "*** Titled Tuesday Blitz"]
[Site "Chess.com"]
[Date "2018.11.06"]
[Round "5"]
[White "Bauxi435"]
[Black "saikrishnaReturns"]
[Result "1/2-1/2"]
[WhiteElo "2441"]
[BlackElo "2609"]
[TimeControl "180+2"]
[EndTime "14:08:20 PST"]
[Termination "Game drawn by stalemate"]

1. d4 {[%clk 0:03:01.9]} 1... Nf6 {[%clk 0:03:00.6]} 2. c4 {[%clk 0:03:02.7]}
2... g6 {[%clk 0:03:02.5]} 3. Nc3 {[%clk 0:03:03.6]} 3... Bg7 {[%clk 0:03:04.4]}
4. e4 {[%clk 0:03:04]} 4... d6 {[%clk 0:03:06]} 5. Be2 {[%clk 0:03:05.2]} 5...
O-O {[%clk 0:03:06.1]} 6. Be3 {[%clk 0:03:06.8]} 6... Na6 {[%clk 0:03:04.8]} 7.
Nf3 {[%clk 0:03:05.4]} 7... e5 {[%clk 0:03:05.5]} 8. O-O {[%clk 0:03:05]} 8...
exd4 {[%clk 0:03:03.9]} 9. Nxd4 {[%clk 0:03:04.8]} 9... Nc5 {[%clk 0:03:05]} 10.
f3 {[%clk 0:03:06.1]} 10... a5 {[%clk 0:03:06]} 11. Qd2 {[%clk 0:03:07.1]} 11...
Re8 {[%clk 0:03:05.6]} 12. Rac1 {[%clk 0:03:02.4]} 12... c6 {[%clk 0:03:05.1]}
13. Rfd1 {[%clk 0:03:02.7]} 13... Qe7 {[%clk 0:02:48.6]} 14. Bh6 {[%clk
0:02:48.9]} 14... Bh8 {[%clk 0:02:47.4]} 15. Bf1 {[%clk 0:02:48.5]} 15... Qe5
{[%clk 0:02:45.8]} 16. Bf4 {[%clk 0:02:33.2]} 16... Qe7 {[%clk 0:02:46.3]} 17.
Nxc6 {[%clk 0:02:21.9]} 17... bxc6 {[%clk 0:02:46.3]} 18. Bxd6 {[%clk
0:02:21.4]} 18... Qa7 {[%clk 0:02:47.3]} 19. Kh1 {[%clk 0:02:13.5]} 19... Ne6
{[%clk 0:02:45.4]} 20. e5 {[%clk 0:02:09.3]} 20... Nd7 {[%clk 0:02:35.9]} 21. f4
{[%clk 0:02:10]} 21... Ng7 {[%clk 0:02:28]} 22. Bd3 {[%clk 0:02:00.9]} 22... Nc5
{[%clk 0:02:26.1]} 23. Be2 {[%clk 0:01:53.3]} 23... Nf5 {[%clk 0:02:21.5]} 24.
Bf3 {[%clk 0:01:54]} 24... Nxd6 {[%clk 0:02:18.1]} 25. Qxd6 {[%clk 0:01:47.7]}
25... Bb7 {[%clk 0:02:11.1]} 26. h4 {[%clk 0:01:34.1]} 26... Qb6 {[%clk
0:02:10.2]} 27. Qd2 {[%clk 0:01:33.7]} 27... Ne6 {[%clk 0:02:06.8]} 28. Ne4
{[%clk 0:01:29.7]} 28... Rad8 {[%clk 0:02:03.3]} 29. Nd6 {[%clk 0:01:28.1]}
29... f6 {[%clk 0:02:02.3]} 30. c5 {[%clk 0:01:20.4]} 30... Nxc5 {[%clk
0:01:58.3]} 31. Qe3 {[%clk 0:01:05.9]} 31... Na4 {[%clk 0:01:33.1]} 32. Qxb6
{[%clk 0:00:59.9]} 32... Nxb6 {[%clk 0:01:35]} 33. Nxb7 {[%clk 0:00:55.5]} 33...
Rxd1+ {[%clk 0:01:33.7]} 34. Rxd1 {[%clk 0:00:57.4]} 34... fxe5 {[%clk 0:01:35]}
35. fxe5 {[%clk 0:00:59.3]} 35... Bxe5 {[%clk 0:01:35.2]} 36. b3 {[%clk
0:00:56.1]} 36... a4 {[%clk 0:01:31]} 37. bxa4 {[%clk 0:00:50.4]} 37... Nxa4
{[%clk 0:01:27.2]} 38. Bxc6 {[%clk 0:00:51.1]} 38... Re7 {[%clk 0:01:26.6]} 39.
Bxa4 {[%clk 0:00:46.8]} 39... Rxb7 {[%clk 0:01:27]} 40. Bb3+ {[%clk 0:00:48.2]}
40... Kg7 {[%clk 0:01:27.8]} 41. Rd3 {[%clk 0:00:46.1]} 41... Rb4 {[%clk
0:01:27.7]} 42. g3 {[%clk 0:00:47]} 42... Kh6 {[%clk 0:01:23.7]} 43. Kg2 {[%clk
0:00:48]} 43... g5 {[%clk 0:01:22.9]} 44. hxg5+ {[%clk 0:00:46.5]} 44... Kxg5
{[%clk 0:01:24.8]} 45. Rd5 {[%clk 0:00:45.4]} 45... Kf6 {[%clk 0:01:24.3]} 46.
Kf3 {[%clk 0:00:44.7]} 46... h5 {[%clk 0:01:16.3]} 47. Rc5 {[%clk 0:00:41.3]}
47... Rg4 {[%clk 0:01:15.6]} 48. Rc6+ {[%clk 0:00:38.5]} 48... Kg5 {[%clk
0:01:16.4]} 49. Rc5 {[%clk 0:00:37.8]} 49... Kf6 {[%clk 0:01:13.9]} 50. Rc6+
{[%clk 0:00:38.8]} 50... Kg5 {[%clk 0:01:08.6]} 51. Rc5 {[%clk 0:00:33.7]} 51...
Kf5 {[%clk 0:01:07.7]} 52. Bc2+ {[%clk 0:00:29.8]} 52... Ke6 {[%clk 0:01:08.7]}
53. Rc6+ {[%clk 0:00:30.6]} 53... Kd5 {[%clk 0:01:09.1]} 54. Rg6 {[%clk
0:00:32.1]} 54... Rxg6 {[%clk 0:01:00.6]} 55. Bxg6 {[%clk 0:00:34]} 55... h4
{[%clk 0:01:00.4]} 56. gxh4 {[%clk 0:00:34.6]} 56... Ke6 {[%clk 0:01:01.4]} 57.
Bc2 {[%clk 0:00:35.1]} 57... Kf6 {[%clk 0:01:02.4]} 58. Kg4 {[%clk 0:00:34.2]}
58... Kg7 {[%clk 0:01:03.4]} 59. h5 {[%clk 0:00:32.2]} 59... Kh8 {[%clk
0:01:03.4]} 60. Bg6 {[%clk 0:00:33.6]} 60... Bc3 {[%clk 0:01:04.1]} 61. Kf5
{[%clk 0:00:32.9]} 61... Ba5 {[%clk 0:01:06]} 62. Ke6 {[%clk 0:00:33.2]} 62...
Bc3 {[%clk 0:01:07.9]} 63. Kd5 {[%clk 0:00:34.5]} 63... Ba5 {[%clk 0:01:09.8]}
64. Kc4 {[%clk 0:00:36.1]} 64... Be1 {[%clk 0:01:11.1]} 65. a4 {[%clk
0:00:36.8]} 65... Bd2 {[%clk 0:01:12.3]} 66. Kd3 {[%clk 0:00:38]} 66... Be1
{[%clk 0:01:13.4]} 67. Be4 {[%clk 0:00:39.2]} 67... Ba5 {[%clk 0:01:13.7]} 68.
Bf3 {[%clk 0:00:41.1]} 68... Bb4 {[%clk 0:01:14.8]} 69. Kc4 {[%clk 0:00:42.5]}
69... Ba5 {[%clk 0:01:16.6]} 70. Be2 {[%clk 0:00:44.1]} 70... Be1 {[%clk
0:01:18.1]} 71. Kd3 {[%clk 0:00:45.8]} 71... Ba5 {[%clk 0:01:19]} 72. Bg4 {[%clk
0:00:46.1]} 72... Be1 {[%clk 0:01:20.9]} 73. Bf3 {[%clk 0:00:47.7]} 73... Ba5
{[%clk 0:01:22.1]} 74. Ke2 {[%clk 0:00:49.6]} 74... Bb4 {[%clk 0:01:23.1]} 75.
Kd1 {[%clk 0:00:51.1]} 75... Ba5 {[%clk 0:01:24.1]} 76. Kc2 {[%clk 0:00:53]}
76... Bb4 {[%clk 0:01:25.4]} 77. Kb3 {[%clk 0:00:54.9]} 77... Ba5 {[%clk
0:01:27.2]} 78. Kc4 {[%clk 0:00:56.8]} 78... Be1 {[%clk 0:01:28.4]} 79. Kb5
{[%clk 0:00:58]} 79... Bd2 {[%clk 0:01:29.5]} 80. Kc4 {[%clk 0:00:59.5]} 80...
Be1 {[%clk 0:01:30.6]} 81. Kc5 {[%clk 0:01:01.4]} 81... Bd2 {[%clk 0:01:31.7]}
82. Kb5 {[%clk 0:01:03.3]} 82... Be1 {[%clk 0:01:32.8]} 83. a5 {[%clk
0:01:05.2]} 83... Bxa5 {[%clk 0:01:33.6]} 84. Kxa5 {[%clk 0:01:07.1]} 84... Kg7
{[%clk 0:01:34.5]} 85. Kb5 {[%clk 0:01:09]} 85... Kf6 {[%clk 0:01:35.8]} 86. Kc5
{[%clk 0:01:10.9]} 86... Kg5 {[%clk 0:01:37]} 87. Kd4 {[%clk 0:01:12.8]} 87...
Kh6 {[%clk 0:01:37.9]} 88. Ke5 {[%clk 0:01:14.4]} 88... Kg7 {[%clk 0:01:39.2]}
89. Kf5 {[%clk 0:01:15.6]} 89... Kh6 {[%clk 0:01:39]} 90. Kf6 {[%clk 0:01:16.9]}
90... Kh7 {[%clk 0:01:39.7]} 91. Be4+ {[%clk 0:01:17.6]} 91... Kh6 {[%clk
0:01:40.9]} 92. Bf3 {[%clk 0:01:19.4]} 92... Kh7 {[%clk 0:01:42.1]} 93. Kg5
{[%clk 0:01:21]} 93... Kg7 {[%clk 0:01:43.1]} 94. Be4 {[%clk 0:01:22.9]} 94...
Kh8 {[%clk 0:01:43.9]} 95. Kh6 {[%clk 0:01:24.8]} 95... Kg8 {[%clk 0:01:45.1]}
96. Bd3 {[%clk 0:01:26.2]} 96... Kh8 {[%clk 0:01:46.5]} 97. Kg6 {[%clk
0:01:28.1]} 97... Kg8 {[%clk 0:01:47.9]} 98. h6 {[%clk 0:01:30]} 98... Kh8
{[%clk 0:01:49.4]} 99. h7 {[%clk 0:01:30.7]} 1/2-1/2

[Event "*** Titled Tuesday Blitz"]
[Site "Chess.com"]
[Date "2018.11.06"]
[Round "5"]
[White "VladDobrov"]
[Black "bascheyaro"]
[Result "1-0"]
[WhiteElo "2731"]
[BlackElo "2716"]
[TimeControl "180+2"]
[EndTime "14:08:28 PST"]
[Termination "VladDobrov won by resignation"]

1. d4 {[%clk 0:03:01.9]} 1... Nf6 {[%clk 0:03:00.5]} 2. Nf3 {[%clk 0:03:03.2]}
2... d5 {[%clk 0:03:01.6]} 3. c4 {[%clk 0:03:03.8]} 3... c6 {[%clk 0:03:02.8]}
4. Nc3 {[%clk 0:03:04.8]} 4... g6 {[%clk 0:03:03.6]} 5. cxd5 {[%clk 0:02:56.9]}
5... cxd5 {[%clk 0:03:04.5]} 6. Bf4 {[%clk 0:02:58.2]} 6... Bg7 {[%clk 0:03:05]}
7. e3 {[%clk 0:02:59.6]} 7... O-O {[%clk 0:03:05.9]} 8. Bd3 {[%clk 0:03:00.6]}
8... Nc6 {[%clk 0:03:06.8]} 9. h3 {[%clk 0:02:59.7]} 9... a6 {[%clk 0:03:07.5]}
10. Rc1 {[%clk 0:03:00.4]} 10... e6 {[%clk 0:03:03.1]} 11. O-O {[%clk
0:02:59.6]} 11... Bd7 {[%clk 0:03:03.3]} 12. Na4 {[%clk 0:02:51.9]} 12... Nb4
{[%clk 0:02:41.1]} 13. Bb1 {[%clk 0:02:52.4]} 13... Bxa4 {[%clk 0:02:39.3]} 14.
Qxa4 {[%clk 0:02:52.6]} 14... Nc6 {[%clk 0:02:40.6]} 15. Ne5 {[%clk 0:02:44.2]}
15... Nxe5 {[%clk 0:02:34.1]} 16. Bxe5 {[%clk 0:02:46.1]} 16... Rc8 {[%clk
0:02:27.4]} 17. Bd3 {[%clk 0:02:29.8]} 17... Qd7 {[%clk 0:02:17.9]} 18. Qb4
{[%clk 0:02:08.8]} 18... Rxc1 {[%clk 0:02:14.5]} 19. Rxc1 {[%clk 0:02:09]} 19...
Rc8 {[%clk 0:02:15.6]} 20. Rc3 {[%clk 0:00:38.1]} 20... Ne8 {[%clk 0:02:01.2]}
21. Bg3 {[%clk 0:00:38]} 21... Bf8 {[%clk 0:01:59.4]} 22. Qb3 {[%clk 0:00:38.8]}
22... Bd6 {[%clk 0:01:58.7]} 23. f4 {[%clk 0:00:33.8]} 23... b5 {[%clk
0:01:15.3]} 24. Kh2 {[%clk 0:00:31.1]} 24... f5 {[%clk 0:01:05.6]} 25. Rxc8
{[%clk 0:00:31.1]} 25... Qxc8 {[%clk 0:01:06.3]} 26. a4 {[%clk 0:00:33]} 26...
b4 {[%clk 0:00:51.9]} 27. a5 {[%clk 0:00:34.2]} 27... Qc6 {[%clk 0:00:44.8]} 28.
Be1 {[%clk 0:00:25.3]} 28... Nc7 {[%clk 0:00:45.7]} 29. Qc2 {[%clk 0:00:26.7]}
29... Qxc2 {[%clk 0:00:45.9]} 30. Bxc2 {[%clk 0:00:28.6]} 30... Kf7 {[%clk
0:00:45.4]} 31. Bd3 {[%clk 0:00:29.9]} 31... Ke7 {[%clk 0:00:46.5]} 32. g4
{[%clk 0:00:31.5]} 32... Kd7 {[%clk 0:00:42.1]} 33. Kg3 {[%clk 0:00:32.3]} 33...
Be7 {[%clk 0:00:42.5]} 34. h4 {[%clk 0:00:33.5]} 34... Kc6 {[%clk 0:00:41.8]}
35. h5 {[%clk 0:00:34.8]} 35... Kb7 {[%clk 0:00:42.5]} 36. Kh3 {[%clk
0:00:32.6]} 36... Ne8 {[%clk 0:00:41.4]} 37. Bh4 {[%clk 0:00:33]} 37... Bxh4
{[%clk 0:00:16.6]} 38. Kxh4 {[%clk 0:00:34.9]} 38... fxg4 {[%clk 0:00:17.8]} 39.
hxg6 {[%clk 0:00:34.3]} 39... hxg6 {[%clk 0:00:19.1]} 40. Bxg6 {[%clk
0:00:32.7]} 40... Nd6 {[%clk 0:00:20.5]} 41. Kxg4 {[%clk 0:00:24.6]} 41... Nc4
{[%clk 0:00:21.3]} 42. Bf7 {[%clk 0:00:25.6]} 42... Kc6 {[%clk 0:00:17.5]} 43.
Bxe6 {[%clk 0:00:23.4]} 43... Nxb2 {[%clk 0:00:17.2]} 44. f5 {[%clk 0:00:22.3]}
44... Kd6 {[%clk 0:00:18.6]} 45. e4 {[%clk 0:00:14.4]} 45... Nc4 {[%clk
0:00:14.2]} 46. e5+ {[%clk 0:00:14.9]} 46... Kc6 {[%clk 0:00:15.5]} 47. f6
{[%clk 0:00:15.4]} 47... b3 {[%clk 0:00:13.9]} 48. f7 {[%clk 0:00:16.7]} 48...
Ne3+ {[%clk 0:00:13.1]} 49. Kf4 {[%clk 0:00:16.2]} 49... Ng2+ {[%clk 0:00:14.5]}
50. Kg3 {[%clk 0:00:17.1]} 50... b2 {[%clk 0:00:15.8]} 51. f8=Q {[%clk
0:00:18.5]} 51... b1=Q {[%clk 0:00:17.2]} 52. Qc5+ {[%clk 0:00:19.9]} 52... Kb7
{[%clk 0:00:18.3]} 53. Bxd5+ {[%clk 0:00:21.5]} 53... Kb8 {[%clk 0:00:19.3]} 54.
Qb6+ {[%clk 0:00:22.2]} 54... Qxb6 {[%clk 0:00:19.8]} 55. axb6 {[%clk
0:00:24.1]} 55... Ne3 {[%clk 0:00:21.5]} 56. Bc6 {[%clk 0:00:22.1]} 56... Nf5+
{[%clk 0:00:22.7]} 57. Kf4 {[%clk 0:00:21]} 57... Nxd4 {[%clk 0:00:24.6]} 58.
Bd5 {[%clk 0:00:21.5]} 58... a5 {[%clk 0:00:25.3]} 59. Ke4 {[%clk 0:00:23]}
59... Nb5 {[%clk 0:00:26]} 60. e6 {[%clk 0:00:22.5]} 60... a4 {[%clk 0:00:26.6]}
61. Ke5 {[%clk 0:00:23.2]} 61... Nc7 {[%clk 0:00:26.9]} 62. bxc7+ {[%clk
0:00:23.6]} 62... Kxc7 {[%clk 0:00:28.8]} 63. Kf6 {[%clk 0:00:25.3]} 63... a3
{[%clk 0:00:30]} 64. e7 {[%clk 0:00:26]} 1-0

[Event "*** Titled Tuesday Blitz"]
[Site "Chess.com"]
[Date "2018.11.06"]
[Round "5"]
[White "Paralinch"]
[Black "Vrolijk"]
[Result "1-0"]
[WhiteElo "2837"]
[BlackElo "2654"]
[TimeControl "180+2"]
[EndTime "14:08:40 PST"]
[Termination "Paralinch won by resignation"]

1. e4 {[%clk 0:03:01.9]} 1... e5 {[%clk 0:03:00.2]} 2. Nf3 {[%clk 0:03:02.9]}
2... Nc6 {[%clk 0:03:01.7]} 3. Nc3 {[%clk 0:03:03.5]} 3... Nf6 {[%clk
0:03:01.6]} 4. d4 {[%clk 0:03:04.7]} 4... exd4 {[%clk 0:03:01.9]} 5. Nxd4 {[%clk
0:03:06.6]} 5... Bb4 {[%clk 0:03:03]} 6. Nxc6 {[%clk 0:03:07.6]} 6... bxc6
{[%clk 0:03:04.5]} 7. Bd3 {[%clk 0:03:09.1]} 7... d5 {[%clk 0:03:04.4]} 8. exd5
{[%clk 0:03:10]} 8... O-O {[%clk 0:03:05.8]} 9. O-O {[%clk 0:03:09.2]} 9... Bg4
{[%clk 0:03:07.4]} 10. Be2 {[%clk 0:03:09.8]} 10... Bxe2 {[%clk 0:03:02.9]} 11.
Nxe2 {[%clk 0:03:10.9]} 11... cxd5 {[%clk 0:03:03.3]} 12. Bg5 {[%clk 0:03:11.6]}
12... c6 {[%clk 0:03:01.9]} 13. Nd4 {[%clk 0:03:11.6]} 13... Qd6 {[%clk
0:02:49]} 14. Nf5 {[%clk 0:02:54.7]} 14... Qe5 {[%clk 0:02:47.8]} 15. Bxf6
{[%clk 0:02:42.2]} 15... Qxf6 {[%clk 0:02:41.5]} 16. Qf3 {[%clk 0:02:39.6]}
16... Rfe8 {[%clk 0:02:28.7]} 17. c3 {[%clk 0:02:35.9]} 17... Bc5 {[%clk
0:02:28.5]} 18. Rae1 {[%clk 0:02:36.7]} 18... Re6 {[%clk 0:02:14.2]} 19. g3
{[%clk 0:02:09.4]} 19... Rae8 {[%clk 0:02:12.7]} 20. Rxe6 {[%clk 0:02:09.7]}
20... Rxe6 {[%clk 0:02:09.1]} 21. Kg2 {[%clk 0:01:59]} 21... Re4 {[%clk
0:01:59.7]} 22. Ne3 {[%clk 0:01:49.6]} 22... Bxe3 {[%clk 0:01:52.4]} 23. Qxf6
{[%clk 0:01:45.8]} 23... gxf6 {[%clk 0:01:51.6]} 24. fxe3 {[%clk 0:01:46.9]}
24... Rxe3 {[%clk 0:01:47.8]} 25. Rxf6 {[%clk 0:01:47.6]} 25... Re2+ {[%clk
0:01:48.8]} 26. Rf2 {[%clk 0:01:48.6]} 26... Re3 {[%clk 0:01:50.2]} 27. Rf6
{[%clk 0:01:44.4]} 27... Re2+ {[%clk 0:01:50.5]} 28. Rf2 {[%clk 0:01:45.4]}
28... Re3 {[%clk 0:01:51]} 29. Rd2 {[%clk 0:01:38.4]} 29... Kg7 {[%clk
0:01:50.6]} 30. Kf2 {[%clk 0:01:39.2]} 30... Re5 {[%clk 0:01:28.3]} 31. Rd4
{[%clk 0:01:39.1]} 31... Rf5+ {[%clk 0:01:25]} 32. Ke2 {[%clk 0:01:37.5]} 32...
Rh5 {[%clk 0:01:25.1]} 33. h4 {[%clk 0:01:38.2]} 33... Re5+ {[%clk 0:01:26.5]}
34. Kf3 {[%clk 0:01:33.7]} 34... Rf5+ {[%clk 0:01:24.7]} 35. Ke3 {[%clk
0:01:33.9]} 35... Re5+ {[%clk 0:01:24.4]} 36. Kd3 {[%clk 0:01:35.3]} 36... Rf5
{[%clk 0:01:25.2]} 37. Ke2 {[%clk 0:01:26.6]} 37... Re5+ {[%clk 0:01:25.4]} 38.
Kd2 {[%clk 0:01:28]} 38... Kf6 {[%clk 0:01:16.2]} 39. Ra4 {[%clk 0:01:25.5]}
39... Re7 {[%clk 0:01:17.6]} 40. Ra6 {[%clk 0:01:25.6]} 40... Rc7 {[%clk
0:01:19]} 41. Ke3 {[%clk 0:01:26.9]} 41... Ke5 {[%clk 0:01:20.3]} 42. g4 {[%clk
0:01:26.2]} 42... f6 {[%clk 0:01:21.3]} 43. Kf3 {[%clk 0:01:23.7]} 43... c5
{[%clk 0:01:17.9]} 44. Ra5 {[%clk 0:01:24.4]} 44... Rb7 {[%clk 0:01:15.4]} 45.
b3 {[%clk 0:01:24.8]} 45... Rc7 {[%clk 0:01:16]} 46. Ke3 {[%clk 0:01:25.4]}
46... f5 {[%clk 0:01:14.5]} 47. g5 {[%clk 0:01:25.7]} 47... Re7 {[%clk
0:01:13.5]} 48. Kf3 {[%clk 0:01:22.3]} 48... Rc7 {[%clk 0:01:13.6]} 49. Ke3
{[%clk 0:01:17.2]} 49... Re7 {[%clk 0:01:13.6]} 50. Ra6 {[%clk 0:01:18.4]} 50...
Rd7 {[%clk 0:01:03.2]} 51. h5 {[%clk 0:01:13.2]} 51... d4+ {[%clk 0:01:02.8]}
52. cxd4+ {[%clk 0:01:14.2]} 52... cxd4+ {[%clk 0:01:01.4]} 53. Kd3 {[%clk
0:01:15.4]} 53... f4 {[%clk 0:01:02.4]} 54. Ra5+ {[%clk 0:01:10.4]} 54... Ke6
{[%clk 0:01:03.4]} 55. Ra6+ {[%clk 0:01:06.6]} 55... Kf5 {[%clk 0:01:03.5]} 56.
g6 {[%clk 0:01:08]} 56... hxg6 {[%clk 0:01:03.6]} 57. Rxg6 {[%clk 0:01:05.7]}
57... f3 {[%clk 0:01:02.8]} 58. Rg8 {[%clk 0:01:06.9]} 58... Kf4 {[%clk
0:01:00.6]} 59. h6 {[%clk 0:01:04.1]} 59... f2 {[%clk 0:00:59.4]} 60. Rf8+
{[%clk 0:00:49.4]} 60... Kg3 {[%clk 0:00:59.2]} 61. Rg8+ {[%clk 0:00:49.6]}
61... Kf3 {[%clk 0:00:49.7]} 62. Rf8+ {[%clk 0:00:50.4]} 62... Kg2 {[%clk
0:00:50.3]} 63. Rg8+ {[%clk 0:00:51.3]} 63... Kf3 {[%clk 0:00:44.4]} 64. Rf8+
{[%clk 0:00:50.7]} 64... Kg2 {[%clk 0:00:45.4]} 65. Rg8+ {[%clk 0:00:50.7]}
65... Kf1 {[%clk 0:00:39.5]} 66. Kd2 {[%clk 0:00:51.3]} 66... d3 {[%clk
0:00:39.3]} 67. Rg7 {[%clk 0:00:50.1]} 67... Rd6 {[%clk 0:00:36.7]} 68. h7
{[%clk 0:00:50.8]} 68... Rh6 {[%clk 0:00:37.8]} 69. b4 {[%clk 0:00:50.6]} 69...
Rh5 {[%clk 0:00:32]} 70. a4 {[%clk 0:00:51.2]} 70... Rh4 {[%clk 0:00:32.7]} 71.
b5 {[%clk 0:00:51.3]} 71... Rh5 {[%clk 0:00:29.8]} 72. a5 {[%clk 0:00:52.1]} 1-0

[Event "*** Titled Tuesday Blitz"]
[Site "Chess.com"]
[Date "2018.11.06"]
[Round "5"]
[White "Gareth-Bale11"]
[Black "matiss90"]
[Result "1/2-1/2"]
[WhiteElo "2597"]
[BlackElo "2424"]
[TimeControl "180+2"]
[EndTime "14:08:52 PST"]
[Termination "Game drawn - insufficient material"]

1. d4 {[%clk 0:02:57.2]} 1... Nf6 {[%clk 0:01:54.8]} 2. Nf3 {[%clk 0:02:54.9]}
2... g6 {[%clk 0:01:55.8]} 3. Nbd2 {[%clk 0:02:55.2]} 3... Bg7 {[%clk
0:01:55.6]} 4. e4 {[%clk 0:02:55.6]} 4... d6 {[%clk 0:01:57.5]} 5. Bd3 {[%clk
0:02:56.3]} 5... O-O {[%clk 0:01:58.4]} 6. O-O {[%clk 0:02:57.3]} 6... Bg4
{[%clk 0:01:51.3]} 7. h3 {[%clk 0:02:57.5]} 7... Bxf3 {[%clk 0:01:52.4]} 8. Nxf3
{[%clk 0:02:59.4]} 8... Nc6 {[%clk 0:01:53.3]} 9. c3 {[%clk 0:03:00.5]} 9... e5
{[%clk 0:01:54.3]} 10. d5 {[%clk 0:03:01.4]} 10... Ne7 {[%clk 0:01:55.6]} 11. g3
{[%clk 0:03:02.3]} 11... Nd7 {[%clk 0:01:53.8]} 12. Kg2 {[%clk 0:03:01]} 12...
a5 {[%clk 0:01:54.9]} 13. Bc2 {[%clk 0:03:00.9]} 13... b5 {[%clk 0:01:54.6]} 14.
b4 {[%clk 0:02:58.6]} 14... h6 {[%clk 0:01:48.3]} 15. h4 {[%clk 0:02:52.4]}
15... f5 {[%clk 0:01:46.5]} 16. h5 {[%clk 0:02:49.3]} 16... fxe4 {[%clk
0:01:31.6]} 17. Bxe4 {[%clk 0:02:51.2]} 17... Nf6 {[%clk 0:01:31.6]} 18. Bxg6
{[%clk 0:02:24.8]} 18... Nxg6 {[%clk 0:01:28.2]} 19. hxg6 {[%clk 0:02:26.7]}
19... Qe8 {[%clk 0:01:28.5]} 20. Nh4 {[%clk 0:02:26.7]} 20... axb4 {[%clk
0:01:26.7]} 21. cxb4 {[%clk 0:02:26.2]} 21... e4 {[%clk 0:01:27.8]} 22. Bf4
{[%clk 0:02:23.4]} 22... Ra3 {[%clk 0:00:58.1]} 23. Re1 {[%clk 0:02:02.7]} 23...
e3 {[%clk 0:00:34.5]} 24. Bxe3 {[%clk 0:01:48.2]} 24... Qe4+ {[%clk 0:00:33]}
25. Kg1 {[%clk 0:01:48.9]} 25... Nxd5 {[%clk 0:00:22]} 26. Bc5 {[%clk
0:01:28.4]} 26... Qc4 {[%clk 0:00:09.7]} 27. Rc1 {[%clk 0:01:27.5]} 27... Nc3
{[%clk 0:00:09]} 28. Qd2 {[%clk 0:01:12.8]} 28... dxc5 {[%clk 0:00:07.5]} 29.
Re7 {[%clk 0:01:13.7]} 29... Qd4 {[%clk 0:00:05.7]} 30. Qe1 {[%clk 0:01:11.1]}
30... Rxa2 {[%clk 0:00:04.8]} 31. Nf5 {[%clk 0:00:41.2]} 31... Rxf5 {[%clk
0:00:04.5]} 32. Qe6+ {[%clk 0:00:41.4]} 32... Kh8 {[%clk 0:00:04]} 33. Qxf5
{[%clk 0:00:42.2]} 33... Qxf2+ {[%clk 0:00:04.6]} 34. Qxf2 {[%clk 0:00:41.8]}
34... Bd4 {[%clk 0:00:04.5]} 35. g7+ {[%clk 0:00:21.4]} 35... Kg8 {[%clk
0:00:04.4]} 36. Rf1 {[%clk 0:00:20.5]} 36... Rxf2 {[%clk 0:00:02.7]} 37. Rxf2
{[%clk 0:00:21.3]} 37... Nd1 {[%clk 0:00:03.8]} 38. Kf1 {[%clk 0:00:20.1]} 38...
Nxf2 {[%clk 0:00:04.7]} 39. bxc5 {[%clk 0:00:21.1]} 39... Bxc5 {[%clk
0:00:05.9]} 40. Rxc7 {[%clk 0:00:22.1]} 40... Bd4 {[%clk 0:00:05.8]} 41. Rd7
{[%clk 0:00:21.6]} 41... Bc5 {[%clk 0:00:06.4]} 42. Rc7 {[%clk 0:00:22]} 42...
Ne4 {[%clk 0:00:07.1]} 43. Ke2 {[%clk 0:00:20.8]} 43... b4 {[%clk 0:00:07.6]}
44. Kd3 {[%clk 0:00:20.5]} 44... Nxg3 {[%clk 0:00:07.9]} 45. Rxc5 {[%clk
0:00:21.2]} 45... Kxg7 {[%clk 0:00:08.9]} 46. Rb5 {[%clk 0:00:22.5]} 46... Kg6
{[%clk 0:00:09.8]} 47. Rxb4 {[%clk 0:00:22.4]} 47... Kg5 {[%clk 0:00:10.8]} 48.
Ke3 {[%clk 0:00:23.5]} 48... Nf5+ {[%clk 0:00:11.7]} 49. Kf3 {[%clk 0:00:24.6]}
49... h5 {[%clk 0:00:12.7]} 50. Rb8 {[%clk 0:00:25.7]} 50... Nh4+ {[%clk
0:00:13]} 51. Kg3 {[%clk 0:00:26.8]} 51... Nf5+ {[%clk 0:00:14.1]} 52. Kh3
{[%clk 0:00:28.2]} 52... h4 {[%clk 0:00:15.4]} 53. Rg8+ {[%clk 0:00:29.8]} 53...
Kf4 {[%clk 0:00:16.5]} 54. Rg4+ {[%clk 0:00:30.5]} 54... Ke5 {[%clk 0:00:16]}
55. Rg1 {[%clk 0:00:32.4]} 55... Kf4 {[%clk 0:00:16.6]} 56. Rf1+ {[%clk
0:00:33.5]} 56... Kg5 {[%clk 0:00:17.8]} 57. Rf2 {[%clk 0:00:34.4]} 57... Ng3
{[%clk 0:00:17.8]} 58. Ra2 {[%clk 0:00:35.2]} 58... Nf5 {[%clk 0:00:18.3]} 59.
Ra4 {[%clk 0:00:37.1]} 59... Kh5 {[%clk 0:00:17.8]} 60. Rg4 {[%clk 0:00:37.1]}
60... Kh6 {[%clk 0:00:18.8]} 61. Kg2 {[%clk 0:00:35.3]} 61... Kh5 {[%clk
0:00:15.7]} 62. Rg8 {[%clk 0:00:35.1]} 62... Nh6 {[%clk 0:00:15.9]} 63. Rg7
{[%clk 0:00:32.2]} 63... Nf5 {[%clk 0:00:16.5]} 64. Rg8 {[%clk 0:00:30.4]} 64...
Nh6 {[%clk 0:00:16.8]} 65. Rh8 {[%clk 0:00:31.6]} 65... Kg5 {[%clk 0:00:17.8]}
66. Kh3 {[%clk 0:00:33]} 66... Nf5 {[%clk 0:00:19]} 67. Rxh4 {[%clk 0:00:34.3]}
67... Nxh4 {[%clk 0:00:19.9]} 1/2-1/2